Body Name,Body,Supplier Name,Spending Service,Nature of Spend,Ledger Date,Invoice Reference,Net Amount (excluding VAT)
Lancaster City Council,30UH,A G Electrics,Environmental Services,Capital Payments To Contractors,04/03/2014,091582,2400.00
Lancaster City Council,30UH,A G Electrics,Environmental Services,Capital Payments To Contractors,04/03/2014,091582,1020.00
Lancaster City Council,30UH,A G Electrics,Environmental Services,Capital Payments To Contractors,12/03/2014,091558,3465.00
Lancaster City Council,30UH,A G Electrics,Environmental Services,Capital Payments To Contractors,12/03/2014,0915781,960.00
Lancaster City Council,30UH,A G Electrics,Environmental Services,Capital Payments To Contractors,12/03/2014,0915781,1700.00
Lancaster City Council,30UH,A G Electrics,Environmental Services,Capital Payments To Contractors,12/03/2014,0915793,680.00
Lancaster City Council,30UH,A G Electrics,Environmental Services,Capital Payments To Contractors,12/03/2014,0915793,1200.00
Lancaster City Council,30UH,A G Electrics,Environmental Services,Capital Payments To Contractors,31/03/2014,091575,990.00
Lancaster City Council,30UH,A G Electrics,Environmental Services,Capital Payments To Contractors,31/03/2014,091575,1800.00
Lancaster City Council,30UH,A G Electrics,Environmental Services,Capital Payments To Contractors,31/03/2014,0915783,795.00
Lancaster City Council,30UH,A G Electrics,Environmental Services,Capital Payments To Contractors,31/03/2014,0915783,1000.00
Lancaster City Council,30UH,A G Electrics,Environmental Services,Capital Payments To Contractors,31/03/2014,091598,2160.00
Lancaster City Council,30UH,A G Electrics,Environmental Services,Capital Payments To Contractors,31/03/2014,091598,3000.00
Lancaster City Council,30UH,A G Electrics,Environmental Services,Capital Payments To Contractors,31/03/2014,091613,10770.00
Lancaster City Council,30UH,A G Electrics,Environmental Services,Capital Payments To Contractors,31/03/2014,091613,7500.00
Lancaster City Council,30UH,A. J. Hayton Welding & Fabrication Ltd,Environmental Services,Repair & Mtce Of Vehicles,31/03/2014,1685,1161.00
Lancaster City Council,30UH,A.A.M. Services Limited,Environmental Services,Contracted Services,19/03/2014,007649,914.00
Lancaster City Council,30UH,A.A.M. Services Limited,Environmental Services,Materials - General,31/03/2014,007668,758.00
Lancaster City Council,30UH,A.A.M. Services Limited,Environmental Services,Materials - General,31/03/2014,007687,517.00
Lancaster City Council,30UH,A1 Supaskips Ltd,Environmental Services,Contracted Services,25/03/2014,13475,527.72
Lancaster City Council,30UH,A1 Supaskips Ltd,Environmental Services,Services - Waste Disposal,04/03/2014,56972,4341.80
Lancaster City Council,30UH,A1 Supaskips Ltd,Environmental Services,Services - Waste Disposal,05/03/2014,56333,610.35
Lancaster City Council,30UH,A1 Supaskips Ltd,Environmental Services,Services - Waste Disposal,05/03/2014,56824,2380.85
Lancaster City Council,30UH,A1 Supaskips Ltd,Environmental Services,Services - Waste Disposal,19/03/2014,57257,1442.00
Lancaster City Council,30UH,A1 Supaskips Ltd,Environmental Services,Services - Waste Disposal,25/03/2014,56973,756.45
Lancaster City Council,30UH,A1 Supaskips Ltd,Environmental Services,Services - Waste Disposal,31/03/2014,124,-151348.50
Lancaster City Council,30UH,A1 Supaskips Ltd,Environmental Services,Services - Waste Disposal,31/03/2014,13369,734.14
Lancaster City Council,30UH,A1 Supaskips Ltd,Environmental Services,Services - Waste Disposal,31/03/2014,56444,151649.55
Lancaster City Council,30UH,A1 Supaskips Ltd,Environmental Services,Services - Waste Disposal,31/03/2014,57128,3774.57
Lancaster City Council,30UH,A1 Supaskips Ltd,Environmental Services,Services - Waste Disposal,31/03/2014,57380,865.20
Lancaster City Council,30UH,AA Event Traffic Solutions,Health & Housing,Service Training Budget,27/03/2014,94722144,2000.00
Lancaster City Council,30UH,Access Door Systems Ltd,Resources,R & M - Buildings,03/03/2014,31320,1580.00
Lancaster City Council,30UH,Access Door Systems Ltd,Resources,R & M - Buildings,03/03/2014,31321,1200.00
Lancaster City Council,30UH,Access Door Systems Ltd,Resources,R & M - Buildings,26/03/2014,31588,2200.00
Lancaster City Council,30UH,acorn,Health & Housing,Equipment and Tools - General,04/03/2014,bpc000784,763.20
Lancaster City Council,30UH,Age UK Lancashire,Health & Housing,Grants,13/03/2014,bpr000242,6000.23
Lancaster City Council,30UH,Aggregate Industries UK Ltd,Environmental Services,Materials - General,31/03/2014,19444858,539.68
Lancaster City Council,30UH,Air Quality Consultants Ltd,Health & Housing,Services - Air Quality Monitoring,25/03/2014,5290,1650.00
Lancaster City Council,30UH,Alcohol Concern,Health & Housing,Service Training Budget,27/03/2014,0000103277,796.60
Lancaster City Council,30UH,Alpha Engraving,Environmental Services,R & M Sites & Signs,31/03/2014,10018889,1080.00
Lancaster City Council,30UH,Anchor Flooring Limited,Environmental Services,Capital Payments To Contractors,31/03/2014,AF/4246,2184.00
Lancaster City Council,30UH,Anchor Flooring Limited,Environmental Services,Capital Payments To Contractors,31/03/2014,AF/4259,1008.00
Lancaster City Council,30UH,Anchor Flooring Limited,Environmental Services,R & M - Buildings,31/03/2014,AF/4235,1194.00
Lancaster City Council,30UH,Anchor Flooring Limited,Environmental Services,R & M - Buildings,31/03/2014,AF/4236,1194.00
Lancaster City Council,30UH,Anchor Flooring Limited,Environmental Services,R & M - Buildings,31/03/2014,AF/4237,1194.00
Lancaster City Council,30UH,Anglo Espanol Ltd t/a Plastech Windows,Environmental Services,Contracted Services,31/03/2014,3247,569.00
Lancaster City Council,30UH,APSE,Environmental Services,Services - Consultants,19/03/2014,1314/1875,1709.26
Lancaster City Council,30UH,APSE,Environmental Services,Services - Consultants,19/03/2014,1314/1909,717.80
Lancaster City Council,30UH,Arnside Archive Group,Regeneration and Planning,Grants,25/03/2014,npr000124,1022.00
Lancaster City Council,30UH,Ashfield Special Needs Limited,Health & Housing,Capital Payments To Contractors,31/03/2014,1297,4001.75
Lancaster City Council,30UH,Astbury Professional Services,Health & Housing,Services - Medical Fees,13/03/2014,5,730.80
Lancaster City Council,30UH,ATS Euromaster Ltd,Environmental Services,Repair & Mtce Of Vehicles,31/03/2014,0096071,1445.44
Lancaster City Council,30UH,B4YS Hyperfast,Regeneration and Planning,Grants,05/03/2014,npr000119,1000.00
Lancaster City Council,30UH,B4YS Hyperfast,Regeneration and Planning,Grants,19/03/2014,npr000123,1000.00
Lancaster City Council,30UH,B4YS Hyperfast,Regeneration and Planning,Grants,31/03/2014,npr000126,1000.00
Lancaster City Council,30UH,Bang Design Ltd,Health & Housing,Marketing,12/03/2014,BANG011014,745.00
Lancaster City Council,30UH,Bang Design Ltd,Health & Housing,Marketing,31/03/2014,BANG011038,500.00
Lancaster City Council,30UH,Bang Design Ltd,Health & Housing,Marketing,31/03/2014,BANG011038,2150.00
Lancaster City Council,30UH,Bay Camera & Communications Ltd,Environmental Services,Contracted Services,18/03/2014,2819,708.11
Lancaster City Council,30UH,Bay Camera & Communications Ltd,Environmental Services,Contracted Services,18/03/2014,2820,708.11
Lancaster City Council,30UH,Bay Camera & Communications Ltd,Environmental Services,Contracted Services,18/03/2014,2821,708.11
Lancaster City Council,30UH,Bay Camera & Communications Ltd,Environmental Services,Contracted Services,18/03/2014,2822,610.11
Lancaster City Council,30UH,Bay Camera & Communications Ltd,Environmental Services,Contracted Services,18/03/2014,2823,778.11
Lancaster City Council,30UH,Bay Camera & Communications Ltd,Environmental Services,Contracted Services,18/03/2014,2825,1157.23
Lancaster City Council,30UH,Bay Camera & Communications Ltd,Environmental Services,Contracted Services,18/03/2014,2826,607.23
Lancaster City Council,30UH,Bay Camera & Communications Ltd,Environmental Services,Contract Maintenance,18/03/2014,2811,1383.33
Lancaster City Council,30UH,Bay Camera & Communications Ltd,Environmental Services,Contract Maintenance,31/03/2014,2852,1383.33
Lancaster City Council,30UH,Bay Scaffolding Ltd,Environmental Services,Materials - General,25/03/2014,7773,750.00
Lancaster City Council,30UH,Bay Tourism Association,Regeneration and Planning,Services - Consultants,25/03/2014,348,1300.00
Lancaster City Council,30UH,Beaver Tree Surgeons,Regeneration and Planning,Forestry Commission Works,31/03/2014,167/13,750.00
Lancaster City Council,30UH,Bell Microsystems Ltd,Resources,Purchase Of Equipment,27/03/2014,SI110905,1383.33
Lancaster City Council,30UH,Bell Microsystems Ltd,Resources,Purchase Of Equipment,27/03/2014,SI110905,8887.77
Lancaster City Council,30UH,Bell Microsystems Ltd,Resources,Purchase Of Equipment,27/03/2014,SI110905,1044.44
Lancaster City Council,30UH,Bell Microsystems Ltd,Resources,Purchase Of Equipment,27/03/2014,SI110905,6548.88
Lancaster City Council,30UH,Bell Microsystems Ltd,Resources,Services - Consultants,18/03/2014,SI110953,1500.00
Lancaster City Council,30UH,Bell Microsystems Ltd,Resources,Services - Consultants,18/03/2014,SI110954,9750.00
Lancaster City Council,30UH,Bell Microsystems Ltd,Resources,Services - Consultants,18/03/2014,SI110955,10500.00
Lancaster City Council,30UH,Bell Microsystems Ltd,Resources,Services - Consultants,18/03/2014,SI110956,1295.00
Lancaster City Council,30UH,Bell Microsystems Ltd,Resources,Services - Consultants,18/03/2014,SI110956,1295.00
Lancaster City Council,30UH,Bell Microsystems Ltd,Resources,Services - Consultants,18/03/2014,SI110956,5600.00
Lancaster City Council,30UH,Bell Microsystems Ltd,Resources,Services - Consultants,18/03/2014,SI110956,2150.00
Lancaster City Council,30UH,Bell Microsystems Ltd,Resources,Services - Consultants,18/03/2014,SI110957,10500.00
Lancaster City Council,30UH,Bell Microsystems Ltd,Resources,Services - Consultants,18/03/2014,SO11597,2800.00
Lancaster City Council,30UH,Besam Ltd,Environmental Services,Other Fixed Plant,31/03/2014,SEI/220753,1266.99
Lancaster City Council,30UH,Bittern Countryside Community Interest Company,Regeneration and Planning,Services - Consultants,31/03/2014,03-14/1,1000.00
Lancaster City Council,30UH,Booker,Health & Housing,Materials For Resale,11/03/2014,bpc000827,904.40
Lancaster City Council,30UH,Booker,Health & Housing,Materials For Resale,24/03/2014,bpc000887,686.00
Lancaster City Council,30UH,Bowker IT Limited,Health & Housing,R & M - Buildings,19/03/2014,905672,705.57
Lancaster City Council,30UH,Bowker IT Limited,Resources,Telephones,05/03/2014,905632,660.00
Lancaster City Council,30UH,British Gas Business,Health & Housing,Electricity,26/03/2014,66643775/1,878.77
Lancaster City Council,30UH,British Gas Business,Health & Housing,Electricity,27/03/2014,66655355/1,862.56
Lancaster City Council,30UH,British Gas Business,Health & Housing,Gas,06/03/2014,62217203/1,-7410.15
Lancaster City Council,30UH,British Gas Business,Health & Housing,Gas,06/03/2014,62217203/2,7346.56
Lancaster City Council,30UH,British Gas Business,Health & Housing,Gas,20/03/2014,66708573/1,9454.39
Lancaster City Council,30UH,British Gas Business,Health & Housing,Gas,26/03/2014,667043151/1,910.71
Lancaster City Council,30UH,British Gas Business,Health & Housing,Gas,27/03/2014,66704316/1,1077.73
Lancaster City Council,30UH,British Gas Business,Health & Housing,Gas,27/03/2014,66704317/1,660.30
Lancaster City Council,30UH,British Gas Business,Health & Housing,Gas,27/03/2014,66708560/1,1704.29
Lancaster City Council,30UH,British Gas Business,Health & Housing,Gas,27/03/2014,66708561/1,1929.69
Lancaster City Council,30UH,British Gas Business,Health & Housing,Gas,27/03/2014,66708570/1,2035.71
Lancaster City Council,30UH,British Gas Business,Health & Housing,Gas,27/03/2014,66708571/1,1680.22
Lancaster City Council,30UH,British Gas Business,Health & Housing,Gas,27/03/2014,66708572/1,2466.36
Lancaster City Council,30UH,British Gas Business,Environmental Services,Gas,31/03/2014,66704382/1,1238.76
Lancaster City Council,30UH,British Gas Business,Environmental Services,Gas,31/03/2014,66708569/1,1745.95
Lancaster City Council,30UH,British Gas Business,Resources,Gas,05/03/2014,65682048/1,-1716.53
Lancaster City Council,30UH,British Gas Business,Resources,Gas,05/03/2014,66463795/1,3912.92
Lancaster City Council,30UH,British Gas Business,Resources,Gas,25/03/2014,66705410/1,852.85
Lancaster City Council,30UH,British Gas Business,Resources,Gas,25/03/2014,66706565/1,523.97
Lancaster City Council,30UH,British Gas Business,Resources,Gas,25/03/2014,66708765/1,1989.16
Lancaster City Council,30UH,British Gas Business,Resources,Gas,26/03/2014,66704313/1,871.18
Lancaster City Council,30UH,British Gas Business,Resources,Gas,26/03/2014,66704381/1,961.95
Lancaster City Council,30UH,British Gas Business,Resources,Gas,26/03/2014,66708562/1,6091.86
Lancaster City Council,30UH,British Gas Business,Resources,Gas,31/03/2014,66081140/1,-2818.97
Lancaster City Council,30UH,British Gas Business,Resources,Gas,31/03/2014,66959309/1,3204.64
Lancaster City Council,30UH,British Telecommunications plc,Resources,Mobile Telephones,27/03/2014,VP70661270Q04101,4005.41
Lancaster City Council,30UH,British Telecommunications Plc,Environmental Services,Capital Payments To Contractors,31/03/2014,951674,15180.00
Lancaster City Council,30UH,Broadband Buyer,Resources,Purchase Of Equipment,17/03/2014,jpc000088,"3,726.00"
Lancaster City Council,30UH,Broadband Buyer,Resources,VAT Control,17/03/2014,jpc000088,745.20
Lancaster City Council,30UH,Broxap Ltd,Health & Housing,R & M - Buildings,04/03/2014,bpc000788,506.00
Lancaster City Council,30UH,BSI Management Systems,Regeneration and Planning,Subscriptions,13/03/2014,94005419/3000,958.00
Lancaster City Council,30UH,BT PLC,Regeneration and Planning,Capital Payments To Contractors,20/03/2014,AI4833/3,1685.00
Lancaster City Council,30UH,BT PLC,Regeneration and Planning,Capital Payments To Contractors,26/03/2014,AI4833/2,2185.00
Lancaster City Council,30UH,Burrows (GM) Ltd,Environmental Services,Materials - General,31/03/2014,166763,540.00
Lancaster City Council,30UH,Butterfly Conservation,Regeneration and Planning,Grants,11/03/2014,npr000121,9511.56
Lancaster City Council,30UH,C H Brownsord Ltd,Environmental Services,Contracted Services,31/03/2014,369,7600.00
Lancaster City Council,30UH,C H Brownsord Ltd,Environmental Services,Void Maintenance - External,18/03/2014,365,576.00
Lancaster City Council,30UH,Cable&Wireless UK,Resources,Data Line Rental,18/03/2014,UK10/032014/1283,1433.33
Lancaster City Council,30UH,Cable&Wireless UK,Resources,Line Rental - Members,18/03/2014,B1-16258769,701.20
Lancaster City Council,30UH,Cable&Wireless UK,Resources,Telephones,18/03/2014,12641237,1241.54
Lancaster City Council,30UH,Campbell Associates,Health & Housing,Equipment and Tools - General,24/03/2014,13788,6820.00
Lancaster City Council,30UH,Campbell Associates,Health & Housing,Services - Contaminated Land,24/03/2014,13788,8734.00
Lancaster City Council,30UH,Canal & River Trust,Resources,Rent,13/03/2014,0000032941,900.00
Lancaster City Council,30UH,Capita Business Services Ltd,Environmental Services,Software Miscellaneous,12/03/2014,93493399,2379.13
Lancaster City Council,30UH,Capita Symonds Ltd,Governance,Legal & Court Costs,31/03/2014,93540134,4035.00
Lancaster City Council,30UH,Capra Design,Regeneration and Planning,Marketing,25/03/2014,732,1460.00
Lancaster City Council,30UH,Carlisle Glass Limited,Environmental Services,Materials - General,31/03/2014,M 658553,723.20
Lancaster City Council,30UH,Carlisle Glass Limited,Environmental Services,Other Construction Costs,04/03/2014,M 651097,970.00
Lancaster City Council,30UH,CEEP Limited,Health & Housing,Grants,31/03/2014,LCCBA02,1745.00
Lancaster City Council,30UH,Changing Horizon Ltd,Regeneration and Planning,Marketing,31/03/2014,2578,700.00
Lancaster City Council,30UH,Changing Horizon Ltd,Regeneration and Planning,Services - Consultants,31/03/2014,2578,1100.00
Lancaster City Council,30UH,Changing Horizon Ltd,Regeneration and Planning,Services - Consultants,31/03/2014,2584,600.00
Lancaster City Council,30UH,Cipfa,Resources,Subscriptions,20/03/2014,3096628,3100.00
Lancaster City Council,30UH,Cipfa,Resources,Conferences & Seminars,04/03/2014,fpc000028,695.00
Lancaster City Council,30UH,Cipfa,Resources,Subscriptions,06/03/2014,3095819,1375.00
Lancaster City Council,30UH,Cipfa,Resources,Subscriptions,13/03/2014,3095202,875.00
Lancaster City Council,30UH,Civica Services Limited,Resources,Software Purchase\Licences,06/03/2014,1034936,19496.70
Lancaster City Council,30UH,Civica Services Limited,Resources,Software Purchase\Licences,06/03/2014,1034936,16735.30
Lancaster City Council,30UH,Civica Services Limited,Resources,Software Purchase\Licences,06/03/2014,1034936,1991.94
Lancaster City Council,30UH,Civica Services Limited,Resources,Software Purchase\Licences,06/03/2014,1034936,529.18
Lancaster City Council,30UH,Civica Services Limited,Resources,Software Purchase\Licences,06/03/2014,1034936,30232.99
Lancaster City Council,30UH,Civica Services Limited,Resources,Software Purchase\Licences,06/03/2014,1034936,2214.40
Lancaster City Council,30UH,Civica Services Limited,Resources,Software Purchase\Licences,06/03/2014,1034936,1136.08
Lancaster City Council,30UH,Civica Services Limited,Resources,Software Purchase\Licences,06/03/2014,1034936,27039.60
Lancaster City Council,30UH,Civica Services Limited,Resources,Software Purchase\Licences,06/03/2014,1034936,574.00
Lancaster City Council,30UH,Civica Services Limited,Resources,Software Purchase\Licences,06/03/2014,1034936,557.40
Lancaster City Council,30UH,Civica Services Limited,Resources,Software Purchase\Licences,06/03/2014,1034936,11731.74
Lancaster City Council,30UH,Civica Services Limited,Resources,ICON Managed Service,31/03/2014,C/IC123662,5000.00
Lancaster City Council,30UH,Civica Services Limited,Health & Housing,Software - Flare,24/03/2014,M/RG020537,16291.62
Lancaster City Council,30UH,Classic Gifts & Engravings Ltd,Health & Housing,Equipment and Tools - General,31/03/2014,2325,1000.00
Lancaster City Council,30UH,Cleanall Services Ltd.,Resources,Other Cleaning,26/03/2014,21802,6022.38
Lancaster City Council,30UH,Climate Control Engineering,Environmental Services,Contract Maintenance,31/03/2014,10212,1351.00
Lancaster City Council,30UH,Climate Control Engineering,Environmental Services,Contract Maintenance,31/03/2014,10213,2872.00
Lancaster City Council,30UH,Coastal Engineering UK Ltd,Regeneration and Planning,Capital Payments To Contractors,13/03/2014,1382,2045.00
Lancaster City Council,30UH,Comodo,Resources,Computer Equipment,17/03/2014,jpc000092,700.00
Lancaster City Council,30UH,Contact One Limited,Resources,R & M - Buildings,25/03/2014,3124,3396.00
Lancaster City Council,30UH,continental sports,Health & Housing,Equipment and Tools - General,27/03/2014,bpc000924,"1,322.00"
Lancaster City Council,30UH,Contour Showers Ltd.,Environmental Services,Contracted Services,31/03/2014,424715,2010.00
Lancaster City Council,30UH,Contour Showers Ltd.,Environmental Services,Materials - General,31/03/2014,424955,526.20
Lancaster City Council,30UH,Co-Operative Funeral Service,Health & Housing,Services - Burial Of The Dead,14/03/2014,F45362-02104,1534.00
Lancaster City Council,30UH,Corona Energy,Health & Housing,Gas,26/03/2014,09092947,997.50
Lancaster City Council,30UH,Correct Flow Engineering Ltd,Health & Housing,Other Fixed Plant,31/03/2014,24503,527.18
Lancaster City Council,30UH,Correct Flow Engineering Ltd,Health & Housing,R & M - Buildings,31/03/2014,24445,3956.59
Lancaster City Council,30UH,Countryscape,Regeneration and Planning,Marketing,25/03/2014,ARNS-03,3090.00
Lancaster City Council,30UH,Countrystyle Meats Farmshop,Health & Housing,Materials For Resale,31/03/2014,bpc000953,513.66
Lancaster City Council,30UH,County Care Services Ltd T/A Carewatch,Health & Housing,Contracted Services,05/03/2014,3177,700.00
Lancaster City Council,30UH,County Care Services Ltd T/A Carewatch,Health & Housing,Contracted Services,06/03/2014,3169,700.00
Lancaster City Council,30UH,County Care Services Ltd T/A Carewatch,Health & Housing,Contracted Services,06/03/2014,3171,700.00
Lancaster City Council,30UH,County Care Services Ltd T/A Carewatch,Health & Housing,Contracted Services,06/03/2014,3173,700.00
Lancaster City Council,30UH,County Care Services Ltd T/A Carewatch,Health & Housing,Contracted Services,06/03/2014,3175,700.00
Lancaster City Council,30UH,County Care Services Ltd T/A Carewatch,Health & Housing,Contracted Services,06/03/2014,3179,700.00
Lancaster City Council,30UH,County Oil Group Ltd,Environmental Services,VMU Stock,18/03/2014,636729,1890.00
Lancaster City Council,30UH,Craig Jury Plant & Groundworks Limited,Environmental Services,R & M - General,31/03/2014,00203,800.00
Lancaster City Council,30UH,Craig Jury Plant & Groundworks Limited,Regeneration and Planning,Capital Payments To Contractors,19/03/2014,00196,7225.00
Lancaster City Council,30UH,Craig Jury Plant & Groundworks Limited,Regeneration and Planning,R & M - Sea & River / Promenade,04/03/2014,00192,2720.00
Lancaster City Council,30UH,Craig Jury Plant & Groundworks Limited,Regeneration and Planning,R & M - Sea & River / Promenade,04/03/2014,00192,1105.00
Lancaster City Council,30UH,Crossling Ltd,Environmental Services,White Lund Stock,10/03/2014,1083467,884.99
Lancaster City Council,30UH,Crossling Ltd,Environmental Services,White Lund Stock,10/03/2014,1087472,551.63
Lancaster City Council,30UH,Crossling Ltd,Environmental Services,White Lund Stock,17/03/2014,1093454,1184.30
Lancaster City Council,30UH,Crossling Ltd,Environmental Services,White Lund Stock,17/03/2014,1100515,1417.50
Lancaster City Council,30UH,Crucial,Resources,Infrastructure - Update & Maintenance,17/03/2014,jpc000090,685.94
Lancaster City Council,30UH,Cumbria Wildlife Trust,Regeneration and Planning,Grants,11/03/2014,npr000120,9408.85
Lancaster City Council,30UH,Cummins-Allison Ltd.,Environmental Services,R & M - Buildings,12/03/2014,SO10036511,923.00
Lancaster City Council,30UH,D A Edgar Plastering & Tiling,Environmental Services,Capital Payments To Contractors,12/03/2014,34,600.00
Lancaster City Council,30UH,D A Edgar Plastering & Tiling,Environmental Services,Capital Payments To Contractors,12/03/2014,35,750.00
Lancaster City Council,30UH,D A Edgar Plastering & Tiling,Environmental Services,Contracted Services,19/03/2014,36,750.00
Lancaster City Council,30UH,D A Edgar Plastering & Tiling,Environmental Services,Purchase Of Equipment,31/03/2014,38,750.00
Lancaster City Council,30UH,Danfo (UK) Limited,Environmental Services,General Fees & Charges,05/03/2014,0000000660,-3844.03
Lancaster City Council,30UH,Danfo (UK) Limited,Environmental Services,Services - General,05/03/2014,0000002561,14144.07
Lancaster City Council,30UH,Daniel Thwaites plc,Health & Housing,Bar Supplies,28/03/2014,bpc000928,"2,674.86"
Lancaster City Council,30UH,Daniel Thwaites plc,Health & Housing,VAT Control,28/03/2014,bpc000928,534.97
Lancaster City Council,30UH,Dave Wilson Developments,Health & Housing,Capital Grants,05/03/2014,spr000419,2400.00
Lancaster City Council,30UH,Dave Wilson Developments,Health & Housing,Capital Grants,13/03/2014,spr000421,2595.00
Lancaster City Council,30UH,Dave Wilson Developments,Health & Housing,Capital Grants,20/03/2014,spr000423,1440.00
Lancaster City Council,30UH,Dave Wilson Developments,Health & Housing,Capital Grants,24/03/2014,spr000424,2493.78
Lancaster City Council,30UH,David A. Farrer Limited,Environmental Services,Capital Payments To Contractors,31/03/2014,3934,2646.67
Lancaster City Council,30UH,David A. Farrer Limited,Environmental Services,Capital Payments To Contractors,31/03/2014,3935,2755.00
Lancaster City Council,30UH,David Wain Countryside Contracting,Regeneration and Planning,Forestry Commission Works,31/03/2014,2013-2014 002,750.00
Lancaster City Council,30UH,David Wain Countryside Contracting,Regeneration and Planning,Grounds Maintenance - Other,31/03/2014,2013-2014 001,1440.00
Lancaster City Council,30UH,David Willan,Health & Housing,Materials For Resale,31/03/2014,bpc000956,539.33
Lancaster City Council,30UH,Dell Corporation Ltd,Resources,Purchase Of Equipment,06/03/2014,7402095331,2051.28
Lancaster City Council,30UH,Dell Corporation Ltd,Resources,Purchase Of Equipment,12/03/2014,7402097820,17800.00
Lancaster City Council,30UH,Dell Corporation Ltd,Resources,Purchase Of Equipment,18/03/2014,7402098880,1895.88
Lancaster City Council,30UH,Dell Corporation Ltd,Resources,Purchase Of Equipment,27/03/2014,7402102475,1895.88
Lancaster City Council,30UH,Delta Computer Services,Health & Housing,Printing & Stationery,11/03/2014,11093,571.00
Lancaster City Council,30UH,Dennis Barnfield Ltd,Health & Housing,Equipment Maintenance,20/03/2014,bpc000861,716.12
Lancaster City Council,30UH,Derek Franks Organisation,Health & Housing,Exhibitions & Events - % Above Guarantee,31/03/2014,5294,558.80
Lancaster City Council,30UH,Derek Franks Organisation,Health & Housing,Exhibitions & Events - Guarantees,31/03/2014,5294,3500.00
Lancaster City Council,30UH,Dickinson & Whitaker Limited,Health & Housing,Capital Grants,27/03/2014,spr000426,3677.50
Lancaster City Council,30UH,Duncan Ross Ltd,Health & Housing,Forestry Commission Works,13/03/2014,3008,1000.00
Lancaster City Council,30UH,DVLA,Environmental Services,Vehicle Licences,10/03/2014,23072,652.50
Lancaster City Council,30UH,DVLA,Environmental Services,Vehicle Licences,10/03/2014,23073,652.50
Lancaster City Council,30UH,DVLA,Environmental Services,Vehicle Licences,10/03/2014,23074,652.50
Lancaster City Council,30UH,DVLA,Environmental Services,Vehicle Licences,10/03/2014,23075,652.50
Lancaster City Council,30UH,DVLA,Environmental Services,Vehicle Licences,10/03/2014,23077,652.50
Lancaster City Council,30UH,DVLA,Environmental Services,Vehicle Licences,10/03/2014,23078,652.50
Lancaster City Council,30UH,E.Lynch & Sons,Health & Housing,R & M - Buildings,24/03/2014,8075,2360.00
Lancaster City Council,30UH,E.ON,Health & Housing,Electricity,12/03/2014,012910592590,1352.50
Lancaster City Council,30UH,E.ON,Resources,Electricity,04/03/2014,HDAAB6F3F,1224.34
Lancaster City Council,30UH,E.ON,Environmental Services,Electricity,12/03/2014,HFB7F8CFB,636.01
Lancaster City Council,30UH,E.ON,Environmental Services,Electricity,31/03/2014,HFD9D923F,691.02
Lancaster City Council,30UH,Earley Ornamentals Ltd,Environmental Services,Materials - General,31/03/2014,0000087067,4555.31
Lancaster City Council,30UH,Ebuyer,Resources,Purchase Of Equipment,28/03/2014,jpc000098,795.79
Lancaster City Council,30UH,EDF,Health & Housing,Contracted Services,04/03/2014,spc000226,500.00
Lancaster City Council,30UH,Edmundson Electrical Ltd,Environmental Services,Materials - General,11/03/2014,083121,532.50
Lancaster City Council,30UH,Edmundson Electrical Ltd,Environmental Services,Materials - General,11/03/2014,083124,1377.81
Lancaster City Council,30UH,Edmundson Electrical Ltd,Environmental Services,Materials - General,11/03/2014,083125,684.00
Lancaster City Council,30UH,Edmundson Electrical Ltd,Environmental Services,Materials - General,12/03/2014,083130,547.00
Lancaster City Council,30UH,Edmundson Electrical Ltd,Environmental Services,Materials - General,19/03/2014,083131,878.06
Lancaster City Council,30UH,Electro-Tech CP Ltd,Resources,R & M - Buildings,13/03/2014,2190,612.00
Lancaster City Council,30UH,EMCOR Facilities Services Ltd,Environmental Services,Capital Payments To Contractors,24/03/2014,00312408RI,34371.86
Lancaster City Council,30UH,EMCOR Facilities Services Ltd,Environmental Services,Capital Payments To Contractors,24/03/2014,00312415RI,18687.38
Lancaster City Council,30UH,EMCOR Facilities Services Ltd,Environmental Services,Capital Payments To Contractors,31/03/2014,00318622RI,56804.57
Lancaster City Council,30UH,EMCOR Facilities Services Ltd,Environmental Services,Gas Partnership Agreement,31/03/2014,201503,47255.99
Lancaster City Council,30UH,Emo Oil Ltd,Environmental Services,White Lund Stock,26/03/2014,2218461,19612.74
Lancaster City Council,30UH,Emo Oil Ltd,Environmental Services,White Lund Stock,26/03/2014,2218526,2490.84
Lancaster City Council,30UH,Empowerment,Health & Housing,Grants,31/03/2014,14/123,2800.00
Lancaster City Council,30UH,Enigma CCTV Ltd,Environmental Services,Contracted Services,05/03/2014,2019,6910.50
Lancaster City Council,30UH,Enigma CCTV Ltd,Environmental Services,Contracted Services,05/03/2014,2032,6910.50
Lancaster City Council,30UH,Enigma CCTV Ltd,Environmental Services,Contracted Services,05/03/2014,2060,6910.50
Lancaster City Council,30UH,Enigma CCTV Ltd,Environmental Services,Contracted Services,05/03/2014,2076,6910.50
Lancaster City Council,30UH,Envirovent Ltd,Environmental Services,Contracted Services,05/03/2014,0000125322,569.00
Lancaster City Council,30UH,Envirovent Ltd,Environmental Services,Contracted Services,19/03/2014,0000126462,689.00
Lancaster City Council,30UH,Envirovent Ltd,Environmental Services,Contracted Services,25/03/2014,0000127063,569.00
Lancaster City Council,30UH,Envirovent Ltd,Environmental Services,Contracted Services,31/03/2014,0000127066,569.00
Lancaster City Council,30UH,Envirovent Ltd,Environmental Services,Contracted Services,31/03/2014,0000128042,525.00
Lancaster City Council,30UH,Festival Lights,Regeneration and Planning,Services - General,06/03/2014,73900969673,5040.00
Lancaster City Council,30UH,Festival Lights,Regeneration and Planning,Services - General,06/03/2014,73900969682,4360.00
Lancaster City Council,30UH,FGH Security Ltd,Health & Housing,Capital Payments To Contractors,27/03/2014,22402,840.00
Lancaster City Council,30UH,Fire Safety Solutions Ltd,Resources,R & M - Buildings,19/03/2014,FSS-1195/44,4615.23
Lancaster City Council,30UH,First Aid Training Plus,Regeneration and Planning,Exhibitions & Events,13/03/2014,110,615.00
Lancaster City Council,30UH,fitness superstore,Health & Housing,Equipment and Tools - General,27/03/2014,bpc000927,548.87
Lancaster City Council,30UH,Fleet (Line Markers) Ltd,Environmental Services,White Lund Stock,04/03/2014,SI144648,683.70
Lancaster City Council,30UH,FRS Roofing Services Limited,Resources,R & M - Buildings,03/03/2014,1099,2846.00
Lancaster City Council,30UH,Furniture Matters,Environmental Services,Services - General,19/03/2014,612,11605.17
Lancaster City Council,30UH,Furniture Matters,Environmental Services,Services - General,31/03/2014,610,16112.00
Lancaster City Council,30UH,Furniture Matters,Environmental Services,Services - General,31/03/2014,611,-16112.00
Lancaster City Council,30UH,G.W. Resources,Regeneration and Planning,Service Training Budget,19/03/2014,February 14 - 002,1370.70
Lancaster City Council,30UH,Gardners Tile Centre,Environmental Services,Other Construction Costs,05/03/2014,1787,982.40
Lancaster City Council,30UH,Garside & Laycock Ltd,Resources,R & M - Buildings,25/03/2014,766865,5028.36
Lancaster City Council,30UH,Garside & Laycock Ltd,Resources,R & M - Buildings,27/03/2014,763000/E,39821.92
Lancaster City Council,30UH,Gateleys,Governance,Legal & Court Costs,26/03/2014,lpc000084,"1,995.00"
Lancaster City Council,30UH,George Speights and Sons Ltd,Health & Housing,Materials For Resale,25/03/2014,bpc000899,556.42
Lancaster City Council,30UH,Graham Ibbeson Sculpture Ltd,Health & Housing,Materials For Resale,26/03/2014,386,500.00
Lancaster City Council,30UH,Graham The Plumber`s Merchant,Environmental Services,Other Construction Costs,19/03/2014,0235/00739639,1514.55
Lancaster City Council,30UH,Graham The Plumber`s Merchant,Environmental Services,Other Construction Costs,31/03/2014,0235/00740490,1410.65
Lancaster City Council,30UH,Green Close Studios,Health & Housing,Arts Development,06/03/2014,lancs04032014,1250.00
Lancaster City Council,30UH,Greene Training Solutions,Health & Housing,Service Training Budget,24/03/2014,MARCH 2014,1200.00
Lancaster City Council,30UH,Greene Training Solutions,Health & Housing,Service Training Budget,31/03/2014,March 2014,3706.00
Lancaster City Council,30UH,Greenham Trading Limited,Environmental Services,White Lund Stock,26/03/2014,11/222721,720.92
Lancaster City Council,30UH,Gullivers Truck Hire Ltd,Environmental Services,Materials - General,04/03/2014,1402/05103,625.00
Lancaster City Council,30UH,Gullivers Truck Hire Ltd,Environmental Services,Materials - General,12/03/2014,1403/09597,625.00
Lancaster City Council,30UH,Gullivers Truck Hire Ltd,Environmental Services,Materials - General,31/03/2014,1403/11343,625.00
Lancaster City Council,30UH,Gullivers Truck Hire Ltd,Environmental Services,Materials - General,31/03/2014,1403/14130,625.00
Lancaster City Council,30UH,H Bleasdale  (French Polisher),Resources,Fixtures & Fittings - General,27/03/2014,SH/MAR14/18,1300.00
Lancaster City Council,30UH,Haffner Orchestra,Health & Housing,Concerts - General,12/03/2014,bpr000240,1379.40
Lancaster City Council,30UH,Hayles and Howe Ltd,Resources,R & M - Buildings,18/03/2014,20799,13130.00
Lancaster City Council,30UH,Henry Alty Limited,Environmental Services,Materials - General,31/03/2014,760755,2058.00
Lancaster City Council,30UH,Herbert T. Forrest Ltd,Environmental Services,Capital Payments To Contractors,12/03/2014,101686-4,37167.71
Lancaster City Council,30UH,Herbert T. Forrest Ltd,Environmental Services,Capital Payments To Contractors,18/03/2014,101686-5,14173.28
Lancaster City Council,30UH,Herbert T. Forrest Ltd,Environmental Services,Contracted Services,24/03/2014,101615-11,1868.12
Lancaster City Council,30UH,Heysham High School,Health & Housing,Gas,05/03/2014,IN046432,2097.13
Lancaster City Council,30UH,Heysham High School,Health & Housing,Gas,31/03/2014,IN046466,2004.74
Lancaster City Council,30UH,Historic Property Restoration Limited,Resources,R & M - Buildings,03/03/2014,2817,3450.00
Lancaster City Council,30UH,Honeywell Control Systems Ltd,Resources,R & M - Buildings,10/03/2014,5200826855,2629.52
Lancaster City Council,30UH,Honeywell Control Systems Ltd,Resources,R & M - Buildings,26/03/2014,5200833402,507.20
Lancaster City Council,30UH,Horton Automatics Limited,Resources,R & M - Buildings,05/03/2014,4050284,585.92
Lancaster City Council,30UH,Hyder Consulting (UK) Limited,Regeneration and Planning,Services - General,27/03/2014,IUG00018222,700.00
Lancaster City Council,30UH,Hygiene Cleaning Supplies Ltd,Health & Housing,Cleaning Materials,19/03/2014,67736/67737/67566,531.94
Lancaster City Council,30UH,Hygiene Cleaning Supplies Ltd,Environmental Services,Equipment and Tools - General,31/03/2014,67288,700.00
Lancaster City Council,30UH,Hygiene Cleaning Supplies Ltd,Environmental Services,White Lund Stock,24/03/2014,67083,585.53
Lancaster City Council,30UH,IDOX Software Limited,Governance,Miscellaneous Licences,31/03/2014,100780,12750.00
Lancaster City Council,30UH,IDOX Software Limited,Governance,Postages,03/03/2014,7002144,2348.64
Lancaster City Council,30UH,Improvement Development & Growth Ltd,Governance,Corporate Training Budget,06/03/2014,13979,1350.00
Lancaster City Council,30UH,Indespension Ltd,Environmental Services,Purchase Of Equipment,31/03/2014,2014498,1667.00
Lancaster City Council,30UH,Innovative Safety Systems Limited,Environmental Services,Equipment and Tools - General,19/03/2014,3811,2394.25
Lancaster City Council,30UH,Innovative Safety Systems Limited,Environmental Services,Equipment and Tools - General,31/03/2014,3810,2394.25
Lancaster City Council,30UH,Instarmac Group PLC,Environmental Services,White Lund Stock,04/03/2014,439507,2235.52
Lancaster City Council,30UH,Integrated Water Services Ltd,Resources,R & M - Buildings,26/03/2014,5101259,3311.96
Lancaster City Council,30UH,J & H M Dickson Ltd,Environmental Services,Equipment and Tools - General,05/03/2014,53069,896.00
Lancaster City Council,30UH,J & H M Dickson Ltd,Environmental Services,Equipment and Tools - General,31/03/2014,52562,1000.00
Lancaster City Council,30UH,J C Critchley Ltd,Environmental Services,Capital Payments To Contractors,19/03/2014,0898,5354.00
Lancaster City Council,30UH,J C Critchley Ltd,Environmental Services,Capital Payments To Contractors,31/03/2014,0899,7426.00
Lancaster City Council,30UH,J C Critchley Ltd,Environmental Services,Other Construction Costs,05/03/2014,0897,5049.00
Lancaster City Council,30UH,J. Atkinson Ltd,Health & Housing,Materials For Resale,31/03/2014,bpc000954,691.88
Lancaster City Council,30UH,J.P. Lennard Ltd,Health & Housing,Equipment and Tools - General,13/03/2014,700129,791.49
Lancaster City Council,30UH,James Andrews Recruitment Solutions Ltd,Health & Housing,Services - Consultants,27/03/2014,00126185,504.78
Lancaster City Council,30UH,Jill Trafford (Instructor),Health & Housing,Services - General,05/03/2014,02/14,855.00
Lancaster City Council,30UH,Jill Trafford (Instructor),Health & Housing,Services - General,21/03/2014,03/14,855.00
Lancaster City Council,30UH,John Walden,Health & Housing,Capital Grants,04/03/2014,spr000417,9804.00
Lancaster City Council,30UH,Johnson & Starley Ltd,Environmental Services,Other Fixed Plant,18/03/2014,DI09652,654.80
Lancaster City Council,30UH,Johnston Publishing Ltd,Governance,Miscellaneous Advertising,11/03/2014,1604085,930.22
Lancaster City Council,30UH,Johnston Publishing Ltd,Environmental Services,Miscellaneous Advertising,31/03/2014,1663507,2996.33
Lancaster City Council,30UH,Johnston Publishing Ltd,Regeneration and Planning,Miscellaneous Advertising,06/03/2014,1570821,528.75
Lancaster City Council,30UH,Johnston Sweepers Ltd,Environmental Services,Repair & Mtce Of Vehicles,05/03/2014,65183486,1335.69
Lancaster City Council,30UH,Julie Savage,Resources,Payroll Cash Control,21/03/2014,fpr000296,2123.73
Lancaster City Council,30UH,K Higginson and Son Buliders,Environmental Services,Capital Payments To Contractors,31/03/2014,14 Prospect Gr,2338.00
Lancaster City Council,30UH,K Higginson and Son Buliders,Environmental Services,Capital Payments To Contractors,31/03/2014,14 Prospect Gr,6581.00
Lancaster City Council,30UH,K Schofield & Son,Environmental Services,Contracted Services,18/03/2014,68 Church brow,760.00
Lancaster City Council,30UH,Kee Services Ltd,Environmental Services,Contract Maintenance,31/03/2014,1896817,709.51
Lancaster City Council,30UH,Keepmoat Regeneration Ltd,Resources,Capital Payments To Contractors,11/03/2014,CSCT000542-002.3,18690.78
Lancaster City Council,30UH,Keepmoat Regeneration Ltd,Resources,Capital Payments To Contractors,12/03/2014,CSCT000523-002,21397.39
Lancaster City Council,30UH,Keepmoat Regeneration Ltd,Resources,Capital Payments To Contractors,12/03/2014,CSCT000542-002,32686.44
Lancaster City Council,30UH,Keepmoat Regeneration Ltd,Resources,Capital Payments To Contractors,12/03/2014,CSCT000543-001,9236.70
Lancaster City Council,30UH,Keepmoat Regeneration Ltd,Resources,Capital Payments To Contractors,18/03/2014,CSCT000571-001,16020.78
Lancaster City Council,30UH,Keepmoat Regeneration Ltd,Resources,Capital Payments To Contractors,26/03/2014,CSCT000542-003,12899.73
Lancaster City Council,30UH,Keepmoat Regeneration Ltd,Resources,Capital Payments To Contractors,26/03/2014,CSCT000543-002,43960.31
Lancaster City Council,30UH,Keepmoat Regeneration Ltd,Resources,Capital Payments To Contractors,26/03/2014,CSCT000562-002,40540.86
Lancaster City Council,30UH,Keepmoat Regeneration Ltd,Resources,Capital Payments To Contractors,26/03/2014,CSCT000571-002,22512.37
Lancaster City Council,30UH,Keepmoat Regeneration Ltd,Resources,Capital Payments To Contractors,27/03/2014,CSCT000562-001.2,6600.00
Lancaster City Council,30UH,Keepmoat Regeneration Ltd,Resources,Capital Payments To Contractors,27/03/2014,CSCT000575-001,44103.23
Lancaster City Council,30UH,Keepmoat Regeneration Ltd,Resources,Capital Payments To Contractors,27/03/2014,CSCT000576-001,6511.96
Lancaster City Council,30UH,Keepmoat Regeneration Ltd,Resources,Capital Payments To Contractors,31/03/2014,CSCT000542-004,6671.40
Lancaster City Council,30UH,Keepmoat Regeneration Ltd,Resources,Capital Payments To Contractors,31/03/2014,CSCT000562-003,45160.55
Lancaster City Council,30UH,Kindling,Health & Housing,Service Training Budget,12/03/2014,181115,1780.00
Lancaster City Council,30UH,Kings Chambers,Governance,Legal & Court Costs,19/03/2014,rw52/7/75,1750.00
Lancaster City Council,30UH,LABC,Regeneration and Planning,Subscriptions,19/03/2014,10030,2061.36
Lancaster City Council,30UH,Lancashire Constabulary,Health & Housing,Grants,19/03/2014,7500003493,887.84
Lancaster City Council,30UH,Lancashire Constabulary,Environmental Services,Contracted Services,31/03/2014,7500003767,24750.00
Lancaster City Council,30UH,Lancashire County Council,Environmental Services,R & M - General,05/03/2014,5200051776,571.95
Lancaster City Council,30UH,Lancashire County Council,Resources,Pensions Inc Act - LCC,20/03/2014,6600000908,5158.62
Lancaster City Council,30UH,Lancashire County Council,Regeneration and Planning,Services - Consultants,25/03/2014,5200053150,2309.00
Lancaster City Council,30UH,Lancashire County Council,Environmental Services,Grants,31/03/2014,5200055759,2135.51
Lancaster City Council,30UH,Lancashire County Council,Health & Housing,Capital Grants,27/03/2014,spr000425,4608.00
Lancaster City Council,30UH,Lancashire County Council,Health & Housing,Capital Grants,27/03/2014,spr000427,1930.00
Lancaster City Council,30UH,Lancashire County Council,Resources,Capital Payments To Contractors,31/03/2014,5200054900,81021.02
Lancaster City Council,30UH,Lancashire County Council,Resources,R & M - Buildings,31/03/2014,5200054900,2446.76
Lancaster City Council,30UH,Lancashire County Council,Health & Housing,Services - General,13/03/2014,5200052335,1186.56
Lancaster City Council,30UH,Lancashire County Council,Environmental Services,Capital Payments To Contractors,12/03/2014,5100172176,3198.72
Lancaster City Council,30UH,Lancashire County Council,Environmental Services,Capital Payments To Contractors,31/03/2014,5200054936,1867.74
Lancaster City Council,30UH,Lancashire County Council,Environmental Services,Landfill Tax,05/03/2014,5200051519,63202.32
Lancaster City Council,30UH,Lancashire County Council,Environmental Services,Services - Waste Disposal,05/03/2014,5200051519,19996.51
Lancaster City Council,30UH,Lancashire County Council,Governance,Land Charge Fees - L.C.C.,19/03/2014,5200052470,1794.00
Lancaster City Council,30UH,Lancashire County Council,Environmental Services,Routine Maintenance,12/03/2014,5200051809,723.24
Lancaster City Council,30UH,Lancashire County Council,Environmental Services,Routine Maintenance,31/03/2014,5200053575,838.00
Lancaster City Council,30UH,Lancashire County Council,Environmental Services,Routine Maintenance,31/03/2014,5200053608,810.75
Lancaster City Council,30UH,Lancashire Probation Board,Health & Housing,Grants,13/03/2014,OP/I002935,500.00
Lancaster City Council,30UH,Lancashire Wildlife Trust Ltd,Regeneration and Planning,Capital Payments To Contractors,19/03/2014,7946,1350.00
Lancaster City Council,30UH,Lancashire Wildlife Trust Ltd,Regeneration and Planning,R & M - Buildings,19/03/2014,7947,3941.25
Lancaster City Council,30UH,Lancaster & District YMCA,Health & Housing,Community Development,27/03/2014,3297,7357.50
Lancaster City Council,30UH,Lancaster & District YMCA,Health & Housing,Grants,31/03/2014,90000441,1750.00
Lancaster City Council,30UH,Lancaster CVS,Health & Housing,Grants,20/03/2014,2013-34,7200.00
Lancaster City Council,30UH,Lancaster Free Methodist Church,Health & Housing,Grants,26/03/2014,100214,4000.00
Lancaster City Council,30UH,Lancaster Management Services T/A LaraNichols ,Health & Housing,Other Cleaning,03/03/2014,9752  ,641.31
Lancaster City Council,30UH,Lancaster Management Services T/A LaraNichols ,Health & Housing,Other Cleaning,31/03/2014,9728,526.44
Lancaster City Council,30UH,Lancaster Training Services Ltd,Environmental Services,Service Training Budget,19/03/2014,9292,1000.00
Lancaster City Council,30UH,Lancaster Training Services Ltd,Environmental Services,Service Training Budget,19/03/2014,9779,538.75
Lancaster City Council,30UH,Lancaster University,Health & Housing,Grants,26/03/2014,8652107,1320.00
Lancaster City Council,30UH,Lancaster University,Environmental Services,Services - Consultants,31/03/2014,8651667,500.00
Lancaster City Council,30UH,Lancaster University,Resources,Telephones,05/03/2014,8650650,659.67
Lancaster City Council,30UH,Lathams,Health & Housing,Materials For Resale,31/03/2014,bpc000951,931.10
Lancaster City Council,30UH,LBS Worldwide Ltd,Environmental Services,Materials - General,31/03/2014,SIN0564149,540.00
Lancaster City Council,30UH,LBS Worldwide Ltd,Environmental Services,Materials - General,31/03/2014,SIN0564149,1017.90
Lancaster City Council,30UH,LDN Wrestling,Health & Housing,Exhibitions & Events - % Above Guarantee,26/03/2014,22214,521.00
Lancaster City Council,30UH,Let`s Play (Everywhere) Ltd,Environmental Services,Capital Payments To Contractors,19/03/2014,LPE/INST1341,7235.00
Lancaster City Council,30UH,Let`s Play (Everywhere) Ltd,Environmental Services,Capital Payments To Contractors,19/03/2014,LPE/INST1341,1000.00
Lancaster City Council,30UH,Let`s Play (Everywhere) Ltd,Environmental Services,Capital Payments To Contractors,31/03/2014,LPE/INST1344,3482.00
Lancaster City Council,30UH,Let`s Play (Everywhere) Ltd,Environmental Services,Capital Payments To Contractors,31/03/2014,LPE/INST1344,900.00
Lancaster City Council,30UH,Lingard Limited,Resources,Capital Payments To Contractors,18/03/2014,2111,80504.39
Lancaster City Council,30UH,Local Government Association,Resources,Services - Consultants,20/03/2014,40134905,769.13
Lancaster City Council,30UH,London Pupae Supplies,Health & Housing,Materials - General,25/03/2014,bpc000898,517.95
Lancaster City Council,30UH,Ludus Dance Company,Health & Housing,Grants,06/03/2014,193,2325.00
Lancaster City Council,30UH,Ludus Dance Company,Health & Housing,Grants,31/03/2014,210,1750.00
Lancaster City Council,30UH,M & D Forsyth Electrical Services Ltd,Environmental Services,Void Maintenance - External,11/03/2014,379,1235.00
Lancaster City Council,30UH,M & D Forsyth Electrical Services Ltd,Environmental Services,Void Maintenance - External,11/03/2014,380,515.00
Lancaster City Council,30UH,M & D Forsyth Electrical Services Ltd,Environmental Services,Void Maintenance - External,18/03/2014,387,622.00
Lancaster City Council,30UH,M D Hanafin & Sons Ltd,Environmental Services,Capital Payments To Contractors,31/03/2014,109137,3610.56
Lancaster City Council,30UH,M D Hanafin & Sons Ltd,Environmental Services,Contracted Services,12/03/2014,109156,513.30
Lancaster City Council,30UH,M D Hanafin & Sons Ltd,Environmental Services,Contracted Services,18/03/2014,109145,1186.23
Lancaster City Council,30UH,M D Hanafin & Sons Ltd,Environmental Services,Contracted Services,18/03/2014,109151,797.18
Lancaster City Council,30UH,M D Hanafin & Sons Ltd,Environmental Services,Contracted Services,31/03/2014,109144,568.13
Lancaster City Council,30UH,M D Hanafin & Sons Ltd,Environmental Services,Contracted Services,31/03/2014,109147,697.78
Lancaster City Council,30UH,M D Hanafin & Sons Ltd,Environmental Services,Contracted Services,31/03/2014,109149,598.70
Lancaster City Council,30UH,M D Hanafin & Sons Ltd,Environmental Services,Contracted Services,31/03/2014,109150,1338.79
Lancaster City Council,30UH,M D Hanafin & Sons Ltd,Health & Housing,Grounds Maintenance - Other,11/03/2014,109158,1495.75
Lancaster City Council,30UH,M K Conversions Ltd,Environmental Services,Capital Payments To Contractors,05/03/2014,3859,7581.56
Lancaster City Council,30UH,M K Conversions Ltd,Environmental Services,Capital Payments To Contractors,31/03/2014,3883,3041.25
Lancaster City Council,30UH,Magnet Limited,Environmental Services,Materials - General,18/03/2014,158/166857,574.19
Lancaster City Council,30UH,Magnet Limited,Environmental Services,Other Construction Costs,11/03/2014,158/165989,518.56
Lancaster City Council,30UH,Magnet Limited,Environmental Services,Other Construction Costs,11/03/2014,158/166608,567.41
Lancaster City Council,30UH,Magnet Limited,Environmental Services,Other Construction Costs,11/03/2014,158/166734,723.69
Lancaster City Council,30UH,Magnet Limited,Environmental Services,Other Construction Costs,25/03/2014,158/166076,667.85
Lancaster City Council,30UH,Magnet Limited,Environmental Services,Other Construction Costs,25/03/2014,158/166293,645.58
Lancaster City Council,30UH,Magnet Limited,Environmental Services,Other Construction Costs,25/03/2014,158/166294,692.49
Lancaster City Council,30UH,Magnet Limited,Environmental Services,Other Construction Costs,25/03/2014,158/166415,563.93
Lancaster City Council,30UH,Magnet Limited,Environmental Services,Other Construction Costs,25/03/2014,158/166607,671.79
Lancaster City Council,30UH,Magnet Limited,Environmental Services,Other Construction Costs,25/03/2014,158/166896,662.79
Lancaster City Council,30UH,Magnet Limited,Environmental Services,Other Construction Costs,25/03/2014,158/166897,698.37
Lancaster City Council,30UH,Magnet Limited,Environmental Services,Other Construction Costs,25/03/2014,158/166941,662.79
Lancaster City Council,30UH,Magnet Limited,Environmental Services,Other Construction Costs,25/03/2014,158/167030,645.58
Lancaster City Council,30UH,Magnet Limited,Environmental Services,Other Construction Costs,31/03/2014,158/165918,671.77
Lancaster City Council,30UH,Magnet Limited,Environmental Services,Other Construction Costs,31/03/2014,158/165990,662.79
Lancaster City Council,30UH,Magnet Limited,Environmental Services,Other Construction Costs,31/03/2014,158/167172,600.28
Lancaster City Council,30UH,Magnet Limited,Environmental Services,Other Construction Costs,31/03/2014,158/167289,724.76
Lancaster City Council,30UH,Magnet Limited,Environmental Services,Other Construction Costs,31/03/2014,158/167482,662.79
Lancaster City Council,30UH,Magnet Limited,Environmental Services,Other Construction Costs,31/03/2014,158/167554,551.34
Lancaster City Council,30UH,Magnet Limited,Environmental Services,Other Construction Costs,31/03/2014,158/167612,538.74
Lancaster City Council,30UH,Magnet Limited,Environmental Services,Other Construction Costs,31/03/2014,158/167824,589.31
Lancaster City Council,30UH,Magnet Limited,Environmental Services,Other Construction Costs,31/03/2014,158/167933,601.55
Lancaster City Council,30UH,Magnet Limited,Environmental Services,Other Construction Costs,31/03/2014,158/168155,597.58
Lancaster City Council,30UH,Magnet Limited,Environmental Services,White Lund Stock,10/03/2014,158/166299,1281.58
Lancaster City Council,30UH,Mark Riding,Health & Housing,Forestry Commission Works,12/03/2014,150214,1500.00
Lancaster City Council,30UH,Mason Gillibrand Architects,Environmental Services,Capital Payments To Contractors,05/03/2014,51616,2332.49
Lancaster City Council,30UH,Mason Gillibrand Architects,Environmental Services,Capital Payments To Contractors,31/03/2014,51657,3698.40
Lancaster City Council,30UH,Matt Baker,Health & Housing,Grants,31/03/2014,MB 192,3250.00
Lancaster City Council,30UH,Maxigiene Environmental Services Limited,Environmental Services,Contracted Services,19/03/2014,17224J,820.00
Lancaster City Council,30UH,Maxigiene Environmental Services Limited,Environmental Services,Contract Maintenance,12/03/2014,17094C,900.00
Lancaster City Council,30UH,Mercer & Sons Limited,Environmental Services,White Lund Stock,18/03/2014,732023,1076.40
Lancaster City Council,30UH,Michael Testler Resources Ltd,Health & Housing,Rent,19/03/2014,5437,6200.00
Lancaster City Council,30UH,Michael Wilson Joinery and Flat Roofing Specialist,Health & Housing,R & M - Buildings,12/03/2014,059/13,600.00
Lancaster City Council,30UH,Michael Wilson Joinery and Flat Roofing Specialist,Health & Housing,R & M - Buildings,12/03/2014,059/13,520.00
Lancaster City Council,30UH,Moonlight Serenade Orchestra UK,Health & Housing,Venue - Premises Hire Costs,26/03/2014,MSO UK 14/02,2484.18
Lancaster City Council,30UH,Morecambe Bay Conservation Grazing Co Ltd,Regeneration and Planning,Grounds Maintenance - Other,31/03/2014,LCC.03.14,640.00
Lancaster City Council,30UH,Morecambe Bay Guest House,Health & Housing,Services - Bed and Breakfast,25/03/2014,spc000257,"1,045.00"
Lancaster City Council,30UH,Morecambe Press Ltd,Health & Housing,Marketing,20/03/2014,6128,1285.00
Lancaster City Council,30UH,Mrs. Karen Simpson (Instructor),Health & Housing,Services - General,21/03/2014,03/14,530.62
Lancaster City Council,30UH,N C Penrith Rural Drainage Specialists,Environmental Services,Contracted Services,30/03/2014,1823,930.00
Lancaster City Council,30UH,N C Penrith Rural Drainage Specialists,Environmental Services,Contracted Services,30/03/2014,1823,1345.00
Lancaster City Council,30UH,N C Penrith Rural Drainage Specialists,Environmental Services,Contract Maintenance,31/03/2014,1822,1525.00
Lancaster City Council,30UH,N S Heating Services Ltd,Environmental Services,Contracted Services,05/03/2014,16030,1000.00
Lancaster City Council,30UH,N. P. Structures Ltd. T/A Northern Pollytunnels,Environmental Services,R & M - Buildings,31/03/2014,58117,7016.65
Lancaster City Council,30UH,New Progress Housing Association Limited,Health & Housing,Services - General,13/03/2014,nscm296,4570.00
Lancaster City Council,30UH,Newclear Drains & Newlook Cleaning Services,Environmental Services,Contracted Services,25/03/2014,8960,680.00
Lancaster City Council,30UH,Newclear Drains & Newlook Cleaning Services,Environmental Services,Contracted Services,31/03/2014,8804,520.00
Lancaster City Council,30UH,Newclear Drains & Newlook Cleaning Services,Environmental Services,Contracted Services,31/03/2014,8989,680.00
Lancaster City Council,30UH,Newclear Drains & Newlook Cleaning Services,Environmental Services,Contracted Services,31/03/2014,8991,610.00
Lancaster City Council,30UH,Nisbets,Health & Housing,Equipment and Tools - General,17/03/2014,bpc000846,655.85
Lancaster City Council,30UH,Nisbets,Health & Housing,Exhibitions & Events,25/03/2014,bpc000897,499.98
Lancaster City Council,30UH,North Lancashire Citizens Advice Bureaux,Health & Housing,Grants,19/03/2014,bpr000243,3075.00
Lancaster City Council,30UH,North West Timber Treatments Ltd,Environmental Services,Purchase Of Equipment,05/03/2014,40955,2095.80
Lancaster City Council,30UH,North West Timber Treatments Ltd,Environmental Services,Purchase Of Equipment,31/03/2014,42993,1888.60
Lancaster City Council,30UH,Northern Pontoon Ltd,Regeneration and Planning,R & M - General,26/03/2014,1248,2500.00
Lancaster City Council,30UH,npower,Health & Housing,Electricity,13/03/2014,lgunn6gw,6731.90
Lancaster City Council,30UH,npower,Health & Housing,Electricity,20/03/2014,LGUNXMBK,1784.02
Lancaster City Council,30UH,npower,Health & Housing,Electricity,20/03/2014,LGUNXMBK,2411.15
Lancaster City Council,30UH,npower,Health & Housing,Electricity,20/03/2014,LGUNXMBK,2004.58
Lancaster City Council,30UH,npower,Environmental Services,Electricity,12/03/2014,LGUNV5QF,1706.20
Lancaster City Council,30UH,npower,Environmental Services,Electricity,19/03/2014,LGUNNKW2,1791.03
Lancaster City Council,30UH,npower,Environmental Services,Electricity,19/03/2014,LGUNW27B,1984.17
Lancaster City Council,30UH,npower,Environmental Services,Electricity,31/03/2014,LGUNW256,1649.82
Lancaster City Council,30UH,npower,Resources,Electricity,05/03/2014,LGUNNKZC,952.70
Lancaster City Council,30UH,npower,Resources,Electricity,12/03/2014,LGUNV5QC,3001.29
Lancaster City Council,30UH,npower,Resources,Electricity,12/03/2014,LGUNV5QD,1231.67
Lancaster City Council,30UH,npower,Resources,Electricity,12/03/2014,LGUNW27F,1592.98
Lancaster City Council,30UH,npower,Resources,Electricity,13/03/2014,LGUNV5QB,1327.30
Lancaster City Council,30UH,npower,Resources,Electricity,13/03/2014,LGUNW258,3951.29
Lancaster City Council,30UH,NPS North West Ltd,Resources,R & M - Buildings,26/03/2014,03-11153,866.25
Lancaster City Council,30UH,NSL Limited,Environmental Services,Cash Collection Expenses,26/03/2014,022966,2843.76
Lancaster City Council,30UH,NSL Limited,Environmental Services,Cash Collection Expenses,31/03/2014,023735,3756.83
Lancaster City Council,30UH,NSL Limited,Environmental Services,Contracted Services,26/03/2014,022966,6718.80
Lancaster City Council,30UH,NSL Limited,Environmental Services,Contracted Services,31/03/2014,023735,7283.79
Lancaster City Council,30UH,Nurture Cumbria Ltd,Regeneration and Planning,Services - Consultants,10/03/2014,390,1000.00
Lancaster City Council,30UH,O`Connor Fencing Ltd,Environmental Services,Capital Payments To Contractors,31/03/2014,17021,5073.84
Lancaster City Council,30UH,O`Connor Fencing Ltd,Environmental Services,Capital Payments To Contractors,31/03/2014,17022,4287.50
Lancaster City Council,30UH,O`Connor Fencing Ltd,Environmental Services,Capital Payments To Contractors,31/03/2014,17024,780.00
Lancaster City Council,30UH,O`Connor Fencing Ltd,Environmental Services,Capital Payments To Contractors,31/03/2014,17025,9690.00
Lancaster City Council,30UH,O`Connor Fencing Ltd,Environmental Services,R & M - Buildings,31/03/2014,17020,2265.00
Lancaster City Council,30UH,OC Cleaning Limited,Environmental Services,Window Cleaning,31/03/2014,2876,574.40
Lancaster City Council,30UH,On Target Scaffolding Ltd,Environmental Services,Contracted Services,24/03/2014,2556,1000.00
Lancaster City Council,30UH,Orion Security Print Ltd,Environmental Services,Printing & Stationery,12/03/2014,23693,709.49
Lancaster City Council,30UH,Otis Ltd.,Health & Housing,Other Fixed Plant,20/03/2014,10414621,862.01
Lancaster City Council,30UH,Otis Ltd.,Environmental Services,Capital Payments To Contractors,31/03/2014,KS844041305,39994.40
Lancaster City Council,30UH,Otis Ltd.,Environmental Services,Contracted Services,05/03/2014,RTS 10417463,1692.00
Lancaster City Council,30UH,Otis Ltd.,Environmental Services,Contract Maintenance,31/03/2014,01110971,1267.51
Lancaster City Council,30UH,P & L Barton Ltd,Regeneration and Planning,R & M - Sea & River / Promenade,06/03/2014,5628,6250.00
Lancaster City Council,30UH,P C World,Health & Housing,IT Consumables,24/03/2014,spc000255,541.66
Lancaster City Council,30UH,P. Bolland Ltd,Health & Housing,R & M - Buildings,12/03/2014,1106,831.00
Lancaster City Council,30UH,P.F.Cusack (Tools Supplies) Ltd.,Environmental Services,White Lund Stock,04/03/2014,479638,584.00
Lancaster City Council,30UH,P.McGaffigan & Sons Ltd,Regeneration and Planning,Equipment and Tools - General,31/03/2014,npc000148,"2,138.42"
Lancaster City Council,30UH,P.McGaffigan & Sons Ltd,Regeneration and Planning,Equipment and Tools - General,31/03/2014,npc000149,-595.00
Lancaster City Council,30UH,Parksafe (Systems) Ltd,Environmental Services,Parksafe,26/03/2014,1963,11620.42
Lancaster City Council,30UH,PATROL,Environmental Services,Services - Legal Costs,26/03/2014,4413,812.40
Lancaster City Council,30UH,Pentland Plants,Environmental Services,Materials - General,31/03/2014,52804,790.80
Lancaster City Council,30UH,Pentland Plants,Environmental Services,Materials - General,31/03/2014,53341,548.65
Lancaster City Council,30UH,PHS Group Plc,Health & Housing,Cleansing Equipment,26/03/2014,60955187,1527.88
Lancaster City Council,30UH,Piccadilly Garden Ltd.,Environmental Services,Contracted Services,19/03/2014,1977,918.42
Lancaster City Council,30UH,Pillar Solutions Ltd,Resources,Infrastructure - Update & Maintenance,18/03/2014,118216,930.00
Lancaster City Council,30UH,Pinington Limited,Resources,R & M - Buildings,31/03/2014,1002491,4092.76
Lancaster City Council,30UH,Play and Leisure Ltd,Environmental Services,Playground Improvements,19/03/2014,12994/PLH.2525,8321.00
Lancaster City Council,30UH,Power Trading Limited T/A Think Bathrooms,Health & Housing,Capital Grants,27/03/2014,spr000428,2348.49
Lancaster City Council,30UH,PR Chauffeuring Services,Governance,Central Transport - General,11/03/2014,P R CHAUFFEURING,2190.00
Lancaster City Council,30UH,Premier Office Supplies Ltd,Health & Housing,Office Equipment,05/03/2014,bpc000794,860.00
Lancaster City Council,30UH,Preston City Council,Health & Housing,Marketing,31/03/2014,01681884,3755.00
Lancaster City Council,30UH,Preston City Council,Health & Housing,Marketing,31/03/2014,01681884,840.00
Lancaster City Council,30UH,Preston City Council,Environmental Services,Printing & Stationery,26/03/2014,01671247,646.00
Lancaster City Council,30UH,Preston City Council,Resources,Management Fees,12/03/2014,M67,179000.00
Lancaster City Council,30UH,Preston City Council,Resources,Printing & Stationery,25/03/2014,01671250,1209.50
Lancaster City Council,30UH,Preston City Council,Resources,Legal & Court Costs,06/03/2014,01667329,2500.00
Lancaster City Council,30UH,Print Image Facilities LLP,Governance,Postages,13/03/2014,C300683,1346.06
Lancaster City Council,30UH,Print Image Facilities LLP,Governance,Printing & Stationery,13/03/2014,C300684,753.04
Lancaster City Council,30UH,Profile Security Services Ltd,Environmental Services,Security Services,26/03/2014,102388,5360.20
Lancaster City Council,30UH,Promenade Concert Orchestra,Health & Housing,Venue - Premises Hire Costs,31/03/2014,30032014,929.26
Lancaster City Council,30UH,Prospec Limited,Health & Housing,R & M - Buildings,13/03/2014,51736,2480.00
Lancaster City Council,30UH,Prospec Limited,Health & Housing,R & M - Buildings,13/03/2014,51737,2480.00
Lancaster City Council,30UH,Purchase Power,Resources,Postages,12/03/2014,BB374252,1013.00
Lancaster City Council,30UH,Purchase Power,Resources,Postages,31/03/2014,BB463387A,1013.00
Lancaster City Council,30UH,Pye Motors  Ltd,Environmental Services,Repair & Mtce Of Vehicles,31/03/2014,222299,1575.90
Lancaster City Council,30UH,Quartzelec Ltd,Environmental Services,R & M - Buildings,31/03/2014,7067359,926.00
Lancaster City Council,30UH,R & L Jackson Limited,Regeneration and Planning,Works In Default,19/03/2014,Old Bank Buildings,2175.00
Lancaster City Council,30UH,R & L Jackson Limited,Regeneration and Planning,Works In Default,19/03/2014,Old Bank Buildings,1011.46
Lancaster City Council,30UH,R Briggs & Son (Lancaster) Ltd,Environmental Services,Electrical Inspections,31/03/2014,17014,18117.84
Lancaster City Council,30UH,R Briggs & Son (Lancaster) Ltd,Environmental Services,R & M - Buildings,04/03/2014,16996,1750.00
Lancaster City Council,30UH,R Briggs & Son (Lancaster) Ltd,Environmental Services,R & M - Buildings,11/03/2014,17005,625.00
Lancaster City Council,30UH,R Briggs & Son (Lancaster) Ltd,Environmental Services,R & M - Buildings,18/03/2014,17009,645.00
Lancaster City Council,30UH,R Briggs & Son (Lancaster) Ltd,Regeneration and Planning,Capital Payments To Contractors,13/03/2014,17010,22787.50
Lancaster City Council,30UH,R Briggs & Son (Lancaster) Ltd,Regeneration and Planning,Capital Payments To Contractors,26/03/2014,17020,57562.50
Lancaster City Council,30UH,R Delamore Ltd,Environmental Services,Materials - General,31/03/2014,51789,1657.33
Lancaster City Council,30UH,R G Parkins & Partners Ltd,Environmental Services,Contracted Services,05/03/2014,L30281/01,2601.35
Lancaster City Council,30UH,R G Parkins & Partners Ltd,Environmental Services,Contracted Services,05/03/2014,L30300/01,833.75
Lancaster City Council,30UH,R G Parkins & Partners Ltd,Environmental Services,Contracted Services,05/03/2014,L303980/01,1140.14
Lancaster City Council,30UH,R G Parkins & Partners Ltd,Environmental Services,External Professional Fees,31/03/2014,L30034/03,4655.00
Lancaster City Council,30UH,R G Parkins & Partners Ltd,Regeneration and Planning,Capital Payments To Contractors,20/03/2014,L30287/02,800.00
Lancaster City Council,30UH,Real Asset Management Plc,Resources,Software - Real Asset Management,13/03/2014,SIN013816,1250.00
Lancaster City Council,30UH,Real Asset Management Plc,Resources,Software - Real Asset Management,20/03/2014,SIN013673,2350.00
Lancaster City Council,30UH,Real Asset Management Plc,Resources,Software - Real Asset Management,20/03/2014,SIN013854,1459.88
Lancaster City Council,30UH,Rebecca Corrie-Close,Regeneration and Planning,Grants,26/03/2014,npr000125,1157.00
Lancaster City Council,30UH,Regent Park Studios Ltd,Health & Housing,Grants,31/03/2014,310314,1750.00
Lancaster City Council,30UH,Reith Lambert Limited,Environmental Services,Services - St Nicholas Arcade,26/03/2014,19068,5181.14
Lancaster City Council,30UH,Resin Bonded Surfacing Ltd,Environmental Services,R & M - Environmental Works,31/03/2014,RBS/0613/3226,4816.00
Lancaster City Council,30UH,Rhino Scaffolding (Northern) Ltd,Regeneration and Planning,Works In Default,13/03/2014,13631,2700.00
Lancaster City Council,30UH,Ricoh UK Ltd,Resources,Printing\Copying Equipment,12/03/2014,87783550,11034.21
Lancaster City Council,30UH,Robin Sutton Gases,Environmental Services,Materials - General,31/03/2014,12130,619.00
Lancaster City Council,30UH,Rogerson HomeServe Plus Limited,Environmental Services,Capital Payments To Contractors,05/03/2014,INV305,2925.19
Lancaster City Council,30UH,Rollerstrut LLP,Health & Housing,Cleaning Materials,20/03/2014,ph336,560.00
Lancaster City Council,30UH,Rosehill Polymers Ltd.,Environmental Services,White Lund Stock,04/03/2014,45279,714.00
Lancaster City Council,30UH,RSPB,Regeneration and Planning,Grants,11/03/2014,npr000122,19426.84
Lancaster City Council,30UH,RSPB,Regeneration and Planning,AONB Executive Support,04/03/2014,npc000124,687.75
Lancaster City Council,30UH,Sam Ansell,Regeneration and Planning,Forestry Commission Works,25/03/2014,140318.LCC,1780.00
Lancaster City Council,30UH,SG Equipment Finance Ltd,Resources,Tpt & Plant Operating Leases,20/03/2014,L/011/14/05763,10144.43
Lancaster City Council,30UH,Shorrocks Building Works,Environmental Services,Contracted Services,05/03/2014,3207,865.00
Lancaster City Council,30UH,Shorrocks Building Works,Environmental Services,Contracted Services,31/03/2014,3211,1530.00
Lancaster City Council,30UH,Shorrocks Building Works,Environmental Services,Contracted Services,31/03/2014,3212,2165.00
Lancaster City Council,30UH,Shorrocks Building Works,Environmental Services,Contracted Services,31/03/2014,3215,582.00
Lancaster City Council,30UH,Shorrocks Building Works,Environmental Services,Void Maintenance - External,31/03/2014,3213,2172.00
Lancaster City Council,30UH,Shorrocks Building Works,Environmental Services,Void Maintenance - External,31/03/2014,3214,13253.00
Lancaster City Council,30UH,Signs Express (Lancaster),Health & Housing,Printing & Stationery,31/03/2014,20263/1,1000.00
Lancaster City Council,30UH,Sinclair Design Solutions Limited,Health & Housing,Marketing,20/03/2014,445,512.00
Lancaster City Council,30UH,SitexOrbis Limited,Environmental Services,Void Maintenance - External,11/03/2014,R0500536,638.40
Lancaster City Council,30UH,SitexOrbis Limited,Environmental Services,Void Maintenance - External,31/03/2014,r0501949,704.12
Lancaster City Council,30UH,SitexOrbis Limited,Regeneration and Planning,Security Services,21/03/2014,R0500653M,1075.12
Lancaster City Council,30UH,Solotrim Ltd.,Resources,Rent,18/03/2014,00002113,7325.00
Lancaster City Council,30UH,South Lakeland District Council,Regeneration and Planning,Bldg Regs - Application Fees,26/03/2014,0000351563,6606.33
Lancaster City Council,30UH,South Lakeland District Council,Regeneration and Planning,Services - Consultants,26/03/2014,0000351563,3471.00
Lancaster City Council,30UH,Stagecoach,Health & Housing,Stagecoach Tickets,24/03/2014,bpc000880,"8,136.65"
Lancaster City Council,30UH,Stagecoach,Regeneration and Planning,Stagecoach Tickets,24/03/2014,23206,"1,162.22"
Lancaster City Council,30UH,Stagecoach Services Limited,Health & Housing,Stagecoach Tickets,31/03/2014,363775,1089.99
Lancaster City Council,30UH,Stagecoach Services Limited,Health & Housing,Stagecoach Tickets,31/03/2014,363776,6517.02
Lancaster City Council,30UH,Standard Fuel Oils Ltd,Environmental Services,White Lund Stock,04/03/2014,11319,24215.40
Lancaster City Council,30UH,Stonewell Property Company Ltd,Resources,Service Charges,13/03/2014,SI10188,-777.06
Lancaster City Council,30UH,Straight PLC,Environmental Services,Equipment and Tools - General,18/03/2014,SI-195556,1711.80
Lancaster City Council,30UH,Strawberry Fields Training c.i.c.,Health & Housing,Grants,27/03/2014,0087,1000.00
Lancaster City Council,30UH,Strawberry Fields Training c.i.c.,Health & Housing,Grants,31/03/2014,0090,1750.00
Lancaster City Council,30UH,Supa Scaffold Ltd,Environmental Services,Materials - General,12/03/2014,1247,11516.66
Lancaster City Council,30UH,Syngenta Seeds Ltd,Environmental Services,Materials - General,31/03/2014,8000113846,653.95
Lancaster City Council,30UH,Syngenta Seeds Ltd,Environmental Services,Materials - General,31/03/2014,8000114266,756.28
Lancaster City Council,30UH,Syngenta Seeds Ltd,Environmental Services,Materials - General,31/03/2014,8000114934,557.75
Lancaster City Council,30UH,Syngenta Seeds Ltd,Environmental Services,Materials - General,31/03/2014,8000114935,595.88
Lancaster City Council,30UH,Team Northern Construction Ltd,Environmental Services,Capital Payments To Contractors,31/03/2014,1193,26107.74
Lancaster City Council,30UH,Technijet Ltd,Environmental Services,Other Fixed Plant,31/03/2014,30597,1500.00
Lancaster City Council,30UH,Thane Cemetery Supplies Ltd,Health & Housing,Contracted Services,17/03/2014,14011,1020.40
Lancaster City Council,30UH,The Bay,Environmental Services,Printing & Stationery,05/03/2014,PROFORMA 0028448,767.00
Lancaster City Council,30UH,The Bay,Environmental Services,Services - Recycling Initiatives,05/03/2014,PROFORMA 0028448,1300.00
Lancaster City Council,30UH,The Coppice Co-op,Regeneration and Planning,Forestry Commission Works,25/03/2014,001,1800.00
Lancaster City Council,30UH,The Dukes Playhouse Ltd,Health & Housing,Grants,25/03/2014,bpr000244,4900.00
Lancaster City Council,30UH,The Environment Partnership (TEP) Limited,Regeneration and Planning,Services - Consultants,31/03/2014,1314-00961,3000.00
Lancaster City Council,30UH,The Lile Tool Shop,Health & Housing,Equipment and Tools - General,18/03/2014,bpc000853,521.42
Lancaster City Council,30UH,The Swing Commanders,Health & Housing,Exhibitions & Events - % Above Guarantee,26/03/2014,0059,2388.95
Lancaster City Council,30UH,The Travellers Choice,Health & Housing,Central Transport - General,05/03/2014,66803,1200.00
Lancaster City Council,30UH,The Travellers Choice,Health & Housing,Central Transport - General,05/03/2014,66804,1470.00
Lancaster City Council,30UH,The Travellers Choice,Health & Housing,Central Transport - General,05/03/2014,66805,1230.00
Lancaster City Council,30UH,The Travellers Choice,Health & Housing,Central Transport - General,05/03/2014,66806,540.00
Lancaster City Council,30UH,The Uniform & Leisurewear Company Ltd,Health & Housing,Clothing & Uniforms,11/03/2014,71472,1457.11
Lancaster City Council,30UH,The Van`s Dutch Bulb Company Limited,Environmental Services,Materials - General,31/03/2014,73224,511.70
Lancaster City Council,30UH,Thomas Consulting,Regeneration and Planning,Works In Default,13/03/2014,npc000137,500.00
Lancaster City Council,30UH,Thomas Cook Travel Ltd,Health & Housing,Sundry Expenses,05/03/2014,bpc000793,"2,277.66"
Lancaster City Council,30UH,Thomas Graham & Sons (Iron & Steel) Ltd,Environmental Services,Other Construction Costs,19/03/2014,MR151441,1785.00
Lancaster City Council,30UH,Timothy Edward Bayton,Regeneration and Planning,Forestry Commission Works,05/03/2014,2014/MW/001,588.00
Lancaster City Council,30UH,T-Mobile (UK) Ltd.,Resources,Mobile Telephones,12/03/2014,V00964615016,1463.62
Lancaster City Council,30UH,TNT Post North Limited,Resources,Postages,05/03/2014,IN18US14002651,2066.19
Lancaster City Council,30UH,TNT Post North Limited,Resources,Postages,13/03/2014,IN18US14002987,1039.25
Lancaster City Council,30UH,TNT Post North Limited,Resources,Postages,25/03/2014,IN18US14003401,2324.84
Lancaster City Council,30UH,TNT Post North Limited,Resources,Postages,27/03/2014,IN18US14003811,1780.35
Lancaster City Council,30UH,Total Gas & Power Limited,Health & Housing,Gas,12/03/2014,97250356/14,4867.43
Lancaster City Council,30UH,Tunstall Healthcare(UK)Ltd,Health & Housing,Equipment Funded by Reserves,06/03/2014,10237297,772.00
Lancaster City Council,30UH,Turley Associates Ltd,Regeneration and Planning,Consultancy,26/03/2014,M1005689,20000.00
Lancaster City Council,30UH,Tyrone Lewis General Building Contractors,Environmental Services,Contracted Services,05/03/2014,28 WILLOW LANE,2630.00
Lancaster City Council,30UH,Tyrone Lewis General Building Contractors,Environmental Services,Materials - General,31/03/2014,5 Heysham Park,2535.00
Lancaster City Council,30UH,Tyrone Lewis General Building Contractors,Environmental Services,R & M - Buildings,31/03/2014,BIN STORE/LUNE HSE,820.00
Lancaster City Council,30UH,UK Roofing Co,Environmental Services,Contracted Services,31/03/2014,3068,2450.00
Lancaster City Council,30UH,UK Roofing Co,Environmental Services,Contracted Services,31/03/2014,3165,550.00
Lancaster City Council,30UH,UK Roofing Co,Environmental Services,R & M - Buildings,11/03/2014,3111,5490.00
Lancaster City Council,30UH,UK Roofing Co,Environmental Services,R & M - Buildings,11/03/2014,3112,1650.00
Lancaster City Council,30UH,UK Roofing Co,Environmental Services,R & M - Buildings,31/03/2014,3149,1075.00
Lancaster City Council,30UH,UK Roofing Co,Environmental Services,R & M - Buildings,31/03/2014,3158,795.00
Lancaster City Council,30UH,UK Roofing Co,Environmental Services,R & M - Buildings,31/03/2014,3159,950.00
Lancaster City Council,30UH,UK Roofing Co,Environmental Services,R & M - Buildings,31/03/2014,3160,950.00
Lancaster City Council,30UH,UK Roofing Co,Environmental Services,R & M - Buildings,31/03/2014,3162,1200.00
Lancaster City Council,30UH,UK Roofing Co,Environmental Services,R & M - Buildings,31/03/2014,3163,1175.00
Lancaster City Council,30UH,UK Roofing Co,Environmental Services,R & M - Buildings,31/03/2014,3164,1200.00
Lancaster City Council,30UH,Ultimate Outdoors,Health & Housing,Clothing & Uniforms,03/03/2014,bpc000781,"1,296.75"
Lancaster City Council,30UH,uniform and leisure wear,Health & Housing,Clothing & Uniforms,25/03/2014,bpc000891,665.00
Lancaster City Council,30UH,United Utilities,Health & Housing,Water Services,05/03/2014,bpc000791,"1,915.26"
Lancaster City Council,30UH,United Utilities,Health & Housing,Water Services,20/03/2014,4024848935,514.97
Lancaster City Council,30UH,United Utilities,Health & Housing,Water Services,20/03/2014,4025929588,736.69
Lancaster City Council,30UH,United Utilities,Environmental Services,Water Services,25/03/2014,4085689738,724.48
Lancaster City Council,30UH,United Utilities,Environmental Services,Water Services,31/03/2014,4081667854,522.11
Lancaster City Council,30UH,United Utilities,Environmental Services,Water Services,31/03/2014,4081667854,2979.93
Lancaster City Council,30UH,Urban Environments Limited,Resources,R & M - Buildings,03/03/2014,4406,700.00
Lancaster City Council,30UH,Valley View Pets Hotel,Health & Housing,Services - Kennelling,12/03/2014,05/14,2695.00
Lancaster City Council,30UH,VolkerStevin Ltd,Regeneration and Planning,R & M - Buildings,13/03/2014,DRCINV/00000739,11547.63
Lancaster City Council,30UH,VolkerStevin Ltd,Regeneration and Planning,R & M - Buildings,25/03/2014,DRCINV/00000761,12049.79
Lancaster City Council,30UH,VPS (UK) Limited,Environmental Services,Contracted Services,05/03/2014,708712,560.00
Lancaster City Council,30UH,VPS (UK) Limited,Environmental Services,Contracted Services,25/03/2014,711406,525.00
Lancaster City Council,30UH,VPS (UK) Limited,Environmental Services,Void Maintenance - External,18/03/2014,711408,720.00
Lancaster City Council,30UH,VPS (UK) Limited,Environmental Services,Void Maintenance - External,31/03/2014,715425,4000.00
Lancaster City Council,30UH,Walker Plumbing & Heating,Health & Housing,Capital Grants,24/03/2014,Inv. 192,1155.00
Lancaster City Council,30UH,Wallgate Ltd.,Environmental Services,Services - General,31/03/2014,0000050897,1085.00
Lancaster City Council,30UH,Watkins Hire Limited,Resources,R & M - Buildings,13/03/2014,46819,3000.00
Lancaster City Council,30UH,Welco,Resources,R & M - Buildings,27/03/2014,ppc000073,715.00
Lancaster City Council,30UH,West Coast Glass (Morecambe) Ltd,Environmental Services,Materials - General,19/03/2014,21073/F,522.00
Lancaster City Council,30UH,West Coast Glass (Morecambe) Ltd,Environmental Services,Materials - General,19/03/2014,21073/G,522.00
Lancaster City Council,30UH,West Coast Glass (Morecambe) Ltd,Environmental Services,Materials - General,19/03/2014,21073/H,626.40
Lancaster City Council,30UH,Whinfield Study Trust,Health & Housing,Electricity,11/03/2014,WHO131,621.47
Lancaster City Council,30UH,Whinfield Study Trust,Health & Housing,Electricity,31/03/2014,WHO132,523.87
Lancaster City Council,30UH,Whinfield Study Trust,Health & Housing,Gas,11/03/2014,WHO131,1333.52
Lancaster City Council,30UH,Whinfield Study Trust,Health & Housing,Gas,31/03/2014,WHO132,1170.15
Lancaster City Council,30UH,Whinfield Study Trust,Health & Housing,Water Services,31/03/2014,WHO132,541.09
Lancaster City Council,30UH,White Paper,Governance,Service Training Budget,18/03/2014,lpc000082,522.00
Lancaster City Council,30UH,Wicksteed Leisure Limited,Environmental Services,Materials - General,31/03/2014,718998,5409.60
Lancaster City Council,30UH,Wicksteed Leisure Limited,Environmental Services,Playground Improvements,31/03/2014,718997,3828.00
Lancaster City Council,30UH,Wicksteed Leisure Limited,Environmental Services,Playground Improvements,31/03/2014,718997,2882.00
Lancaster City Council,30UH,Woodstock Signs,Regeneration and Planning,Management Plan Projects,31/03/2014,8851,1300.00
Lancaster City Council,30UH,Woodstock Signs,Regeneration and Planning,Management Plan Projects,31/03/2014,8851,520.00
Lancaster City Council,30UH,WYG Environment Planning Transport Ltd,Regeneration and Planning,Services - Consultants,26/03/2014,A083780,5003.95
Lancaster City Council,30UH,YESSS electrical,Health & Housing,Contracted Services,17/03/2014,spc000246,"2,479.50"
Lancaster City Council,30UH,YORK SURVEY SUPPLIES,Environmental Services,Equipment and Tools - General,06/03/2014,23036,661.20
Lancaster City Council,30UH,Young Addaction,Health & Housing,Grants,31/03/2014,bpr000252,859.76
Lancaster City Council,30UH,"Your Electrical S, S & S Ltd  T/a YESSS Electrical",Environmental Services,White Lund Stock,10/03/2014,062IN06663,4911.95
Lancaster City Council,30UH,Zoeller Waste Systems Limited,Environmental Services,Repair & Mtce Of Vehicles,18/03/2014,SI61409,860.60
